[Event "Krakow Championship-A 2022"]
[Site "Krakow"]
[Date "2022.06.30"]
[Round "7.5"]
[White "Holtel, Jasper"]
[Black "Leniart, Arkadiusz"]
[Result "1/2-1/2"]
[ECO "A06"]
[WhiteElo "2347"]
[BlackElo "2473"]
[Annotator "TA"]
[PlyCount "100"]
[EventDate "2022.06.25"]
[EventType "swiss"]
[EventCountry "POL"]
[SourceTitle "playchess.com"]
[Source "ChessBase"]
[SourceQuality "1"]
[TimeControl "40/5400+30:1800+30"]

{[%evp 16,100,0,0,0,7,4,9,1,0,16,8,2,4,18,-9,-11,-10,-10,-8,-10,-13,-8,-11,-2,-4,4,4,4,0,4,4,5,5,9,9,37,37,45,37,35,33,37,36,168,145,142,141,142,77,82,67,85,85,230,45,38,0,0,0,0,0,0,-20,-20,-20,-20,-20,-20,-20,-20,-20,-20,-20,-20,-20,-20,-20,-13,-13,-13,-13,-6,-13,0,0,0]} 1. Nf3 {[%emt 0:01:06]} d5 {[%emt 0:00:03]} 2. g3 {[%emt 0:00:15]} Bg4 {[%emt 0:00:11]} 3. Bg2 {[%emt 0:00:09]} Nd7 {[%emt 0:00:05]} 4. c4 {[%emt 0:00:12]} e6 {[%emt 0:00:05]} 5. cxd5 {[%emt 0:02:03]} exd5 {[%emt 0:00:04]} 6. O-O {[%emt 0:00:22]} Ngf6 {[%emt 0:01:17]} 7. d3 {[%emt 0:00:27]} c6 {[%emt 0:01:05]} 8. Nc3 {[%emt 0:00:36]} Bc5 {[%emt 0:00:39]} 9. Qb3 {[%emt 0:00:50]} Nb6 {[%emt 0:00:15] A11: English Opening: 1...c6.} 10. h3 {[%emt 0:07:38]} Bxf3 {[%emt 0:00:11]} 11. Bxf3 {[%emt 0:00:32]} O-O {[%emt 0:00:08]} 12. e4 {[%emt 0:09:54]} dxe4 {[%emt 0:01:34]} 13. dxe4 {[%emt 0:00:51]} Qe7 {[%emt 0:00:09] [#]} 14. Bf4 $146 {[%emt 0:05:44]} ({Predecessor:} 14. Kg2 Rfe8 15. Bf4 Bd6 16. Bxd6 Qxd6 17. Rad1 Qc5 18. Rfe1 g6 19. Re2 Kg7 20. Red2 {½-½ (31) Sacripanti,G (2317)-Hengl,C (2386) ICCF email 2016}) 14... Ne8 {[%emt 0:00:06]} 15. Na4 {[%emt 0:11:34]} Nxa4 {[%emt 0:03:43]} 16. Qxa4 {[%emt 0:00:15]} Nc7 {[%emt 0:13:59]} 17. Bxc7 {[%emt 0:01:16]} Qxc7 {[%emt 0:00:05]} 18. Kg2 {[%emt 0:00:35]} Qe5 {[%emt 0:03:31]} 19. Qc2 {[%emt 0:03:41]} Bd4 {[%emt 0:06:26]} 20. Rad1 {[%emt 0:00:31]} c5 {[%emt 0:00:40]} 21. b3 {[%emt 0:03:17]} Rfe8 {[%emt 0:03:45]} 22. h4 {[%emt 0:04:21][%cal Bh3h4,Bh4h5][%mdl 32]} a6 {[%emt 0:04:36]} 23. Rfe1 {[%emt 0:02:30]} Rad8 {[%emt 0:05:54]} 24. Bg4 {[%emt 0:05:10]} Qc7 {[%emt 0:06:47]} 25. f4 {[%emt 0:05:41]} b5 {[%emt 0:06:17]} 26. e5 {[%emt 0:02:16]} g6 {[%emt 0:02:30]} 27. h5 {[%emt 0:01:54]} Kg7 {[%emt 0:02:34]} 28. Bf3 {[%emt 0:08:01] Active counter play!} Qa5 {[%emt 0:12:11]} 29. Re2 {[%emt 0:01:41]} Qb4 {[%emt 0:07:15]} (29... Qb6 $14) 30. Qe4 {[%emt 0:04:37] [#] And now Qc6 would win.} Qa5 {[%emt 0:07:50]} 31. Qb7 {[%emt 0:01:21] Inhibits Qb6.} Rb8 {[%emt 0:01:59]} 32. Qd7 {[%emt 0:02:23]} ({White should play} 32. Qa7 {[%cal Oh5h6] aiming for h6+!} Rbc8 33. h6+ Kf8 34. b4) 32... Qd8 $16 {[%emt 0:01:15]} 33. Qh3 {[%emt 0:03:48]} Qc8 {[%emt 0:01:03] Prevents f5.} 34. Qh2 {[%emt 0:02:31]} Rb6 {[%emt 0:03:28] [#]} (34... a5 $16 {was called for.}) 35. Rh1 $2 {[%emt 0:01:25]} ({White must play} 35. b4 $1 $18) 35... g5 $1 $14 {[%emt 0:00:32]} 36. h6+ {[%emt 0:00:39]} Kh8 {[%emt 0:01:51] The position is equal.} 37. fxg5 {[%emt 0:02:49]} Rg6 {[%emt 0:01:26]} 38. Qh4 {[%emt 0:00:28] Qf4 is the strong threat.} Qd8 {[%emt 0:00:43]} 39. Qf4 {[%emt 0:03:31]} Qxg5 {[%emt 0:01:06]} 40. Qxg5 {[%emt 0:00:39]} Rxg5 {[%emt 0:00:01]} 41. Rh5 {[%emt 0:04:09]} Rxh5 {[%emt 0:06:00]} 42. Bxh5 $11 {[%emt 0:00:11][%mdl 4096] Endgame KRB-KRB} Kg8 {[%emt 0:00:16]} 43. Bg4 {[%emt 0:07:50]} Rxe5 44. Rxe5 {[%emt 0:00:29]} Bxe5 {[%emt 0:15:40] KB-KB} 45. Bc8 {[%emt 0:00:37]} a5 {[%emt 0:01:57]} 46. Ba6 {[%emt 0:00:30]} b4 {[%emt 0:04:14]} 47. Kf3 {[%emt 0:00:24]} Bd6 {[%emt 0:01:07]} 48. Kg4 {[%emt 0:00:17]} Bf8 {[%emt 0:00:51]} 49. Kh5 {[%emt 0:00:19]} Bd6 {[%emt 0:00:29]} 50. g4 {[%emt 0:00:40]} f6 {[%emt 0:01:27] Black escapes into a draw.  Weighted Error Value: White=0.14 (very precise) /Black=0.12 (very precise)} 1/2-1/2

[Event "Krakow Championship-A 2022"]
[Site "Krakow"]
[Date "2022.06.30"]
[Round "7.6"]
[White "Danielyan, Vahe"]
[Black "Agdestein, Simen"]
[Result "0-1"]
[ECO "B03"]
[WhiteElo "2324"]
[BlackElo "2559"]
[Annotator "TA"]
[PlyCount "120"]
[EventDate "2022.06.25"]
[EventType "swiss"]
[EventCountry "POL"]
[SourceTitle "playchess.com"]
[Source "ChessBase"]
[SourceQuality "1"]
[TimeControl "40/5400+30:1800+30"]

{[%evp 15,120,0,0,0,0,0,67,67,67,0,69,23,30,25,73,77,84,79,75,14,70,77,143,-6,-22,-12,0,-14,0,15,-6,-34,-39,-31,-37,-29,-40,-24,-24,-34,-31,-34,-39,-35,-37,-47,0,0,0,0,493,0,8,7,0,-40,-34,-155,-150,-94,-146,-356,-348,-344,-339,-390,-387,-442,-410,-428,-411,-560,-552,-560,-560,-1145,-1033,-1098,-1032,-1127,-1032,-1183,-1210,-1128,-1132,-1113,-1057,-1093,-1061,-747,-737,-1005,-952,-1013,-805,-2251,-2152,-1725,-1409,-1541,-1302,-1289,-1432,-1351,-1277,-1385,-748]} 1. e4 {[%emt 0:00:05][%cal Be2e4,Be4e5][%mdl 32]} Nf6 {[%emt 0:00:41]} 2. e5 {[%emt 0:00:57]} Nd5 {[%emt 0:00:04]} 3. d4 {[%emt 0:00:08]} d6 {[%emt 0:00:04]} 4. c4 {[%emt 0:00:09]} Nb6 {[%emt 0:00:04]} 5. f4 {[%emt 0:00:04]} Bf5 {[%emt 0:02:47]} 6. Nc3 {[%emt 0:00:10]} e6 {[%emt 0:00:06]} 7. Be3 {[%emt 0:00:14]} dxe5 {[%emt 0:00:13]} 8. fxe5 {[%emt 0:00:11]} Bb4 {[%emt 0:00:17]} 9. Nf3 {[%emt 0:02:25] Inhibits Qh4+. B03: Alekhine's Defence: Four Pawns Attack.} O-O {[%emt 0:00:12][%cal Oc7c5]} 10. Be2 {[%emt 0:00:52]} Nc6 {[%emt 0:08:19]} ({Better is} 10... c5 $11) 11. O-O $14 {[%emt 0:00:08] White is slightly better.} Na5 {[%emt 0:04:56]} 12. Nd2 {[%emt 0:07:09]} (12. c5 $14 Bxc3 13. bxc3) 12... Qd7 {[%emt 0:12:02]} (12... c5 $11 13. d5 (13. dxc5 Nd7 $11) 13... Bg6) 13. Rc1 {[%emt 0:09:19]} (13. Qc1 $14) 13... Rad8 $11 {[%emt 0:03:08] [#]} 14. h4 $146 {Hoping for g4.} ({Predecessor:} 14. Qe1 h6 15. Qh4 Nc6 16. Nb3 Qe7 17. Qg3 Bg6 18. Rcd1 Kh8 19. Bf4 Bxc3 20. bxc3 {1-0 (32) Llorente Alvarez,J (2100)-Duchene,K (1890) LSS email 2012}) 14... f6 {[%emt 0:11:21]} (14... h6 $11) 15. exf6 $16 {[%emt 0:09:52]} gxf6 {[%emt 0:00:27]} 16. g4 {[%emt 0:04:08]} Qg7 {[%emt 0:03:05][%cal Of5g4]} 17. Rf2 {[%emt 0:11:21]} (17. Kh1 $16 Bg6 18. a3 Bxc3 19. Rxc3 (19. bxc3 c5 $14)) 17... Bg6 {[%emt 0:00:38]} (17... c5 $1 $11 18. d5 (18. dxc5 $2 Naxc4 19. Nxc4 Rxd1+ 20. Rxd1 Nxc4 $19) 18... exd5 $1 19. Rxf5 d4) 18. a3 $14 {[%emt 0:03:00]} Be7 {[%emt 0:17:44]} ({Black should play} 18... Bxc3 19. Rxc3 (19. bxc3 e5 $11) 19... Nc6) 19. Rg2 {[%emt 0:09:47]} (19. c5 $1 $16 {[%cal Rc5b6]}) 19... c5 $11 20. d5 {[%emt 0:00:12]} exd5 {[%emt 0:04:33]} 21. cxd5 {[%emt 0:00:23]} Nxd5 {[%emt 0:04:05]} 22. Nxd5 {[%emt 0:00:42]} Rxd5 {[%cal Bd8d5,Bd5e5,Be5e6,Be6e1][%mdl 32]} 23. Qa4 {[%emt 0:02:19]} b6 {[%emt 0:08:52]} 24. b4 Be8 $36 {[%emt 0:04:21][%mdl 2048] Black has good play.} 25. Bb5 {[%emt 0:00:49]} Bxb5 {[%emt 0:01:07]} 26. Qxb5 Nb7 (26... Re5 27. Bf4 Nb7 28. Bxe5 fxe5 29. g5 $16) 27. Qc6 {[%emt 0:04:05][%csl LRb7,LRd5]} Re5 {[%emt 0:02:18]} 28. Bf4 {[%emt 0:01:48]} Nd8 {[%emt 0:00:20]} 29. Qf3 {[%emt 0:00:23]} Re6 {[%emt 0:00:18]} 30. Ne4 {[%emt 0:00:21][%cal Rb4c5]} cxb4 (30... Nc6 $15) 31. axb4 Kh8 {[%emt 0:01:38]} 32. Rc7 {[%emt 0:13:59]} f5 $2 {[%emt 0:06:37][%mdl 8192]} (32... Qg6 $11 33. Ng3 Bxb4) 33. Ng5 $2 {[%emt 0:08:39]} (33. gxf5 $1 $18 Qd4+ 34. Be3 Qxe4 35. Qxe4 Rxe4 36. Rxe7 $1 {[%mdl 512]} Rxe3 37. Rxe3) 33... Re1+ {[%emt 0:01:44]} 34. Kh2 {[%emt 0:01:12] gxf5 is the strong threat.} Qd4 {[%emt 0:00:31] White must now prevent ...fxg4.} 35. Bg3 {[%emt 0:07:07]} fxg4 {[%emt 0:02:20]} 36. Qb3 {[%emt 0:00:36]} ({White should try} 36. Qc3 $1 $15 Qxc3 37. Rxc3) 36... Rff1 $17 {[%emt 0:01:26][%csl Ge1][%cal Rf1h1,Bf8f1,Bf1e1,Be1e7][%mdl 32]} 37. Bxe1 {[%emt 0:01:40]} Rxe1 {[%emt 0:00:05] Dancing on a razor blade.} (37... Bxg5 $2 38. hxg5 Rxe1 39. Qb2 Qxb2 40. Rxb2 $18) 38. Rxe7 {[%emt 0:00:49]} (38. Rd7 $17 {was the only defense.} Bd6+ 39. Rxd6 Qxd6+ 40. Qg3 Qxg3+ 41. Kxg3) 38... Rxe7 $19 {[%emt 0:00:17]} 39. Qg3 {[%emt 0:00:03]} h5 {[%emt 0:01:30]} (39... Qxb4 $2 40. Qxg4 Qxg4 41. Rxg4 $19) 40. Rf2 {[%emt 0:01:31]} Kg7 {[%emt 0:01:12]} (40... Re3 41. Qc7 g3+ 42. Kg2 Qd5+ 43. Rf3 Qd2+ 44. Kxg3 Qe1+ 45. Kf4 Rxf3+ 46. Kxf3 Qd1+ 47. Ke4 Qg4+ 48. Ke3 Qg1+ 49. Ke4 (49. Ke2 Qg4+ 50. Ke3 Qg1+ 51. Ke4 Qg4+ 52. Ke3 $11) 49... Qg4+ 50. Ke3 Qg1+ 51. Ke4 (51. Ke2 Qg4+ 52. Ke3 $11) 51... Qg4+ $11) 41. b5 {[%emt 0:30:30]} Qe5 {[%emt 0:04:05]} 42. Qxe5+ {[%emt 0:00:00]} Rxe5 {[%emt 0:01:25][%mdl 4096] Endgame KRN-KRN} 43. Rd2 {[%emt 0:00:00] [#]} Ne6 {[%emt 0:00:22] Black is clearly winning.} 44. Nxe6+ {[%emt 0:00:00]} Rxe6 {[%emt 0:00:06] KR-KR} 45. Rd7+ {[%emt 0:00:00]} Kf6 {[%emt 0:00:42]} 46. Rxa7 {[%emt 0:00:00]} Re5 {[%emt 0:00:23]} 47. Rh7 {[%emt 0:00:00]} Kg6 {[%emt 0:00:53]} 48. Rh8 {[%emt 0:00:00]} Rxb5 {[%emt 0:00:26]} 49. Rg8+ {[%emt 0:00:00]} Kf6 {[%emt 0:00:29]} 50. Rh8 {[%emt 0:00:00]} Ke7 {[%emt 0:04:36]} 51. Rh6 {[%emt 0:00:00]} Kd7 {[%emt 0:01:22] Strongly threatening ...Kc7.} 52. Kg3 {[%emt 0:00:00]} Kc7 {[%emt 0:00:09] And now ...Rf5 would win.} 53. Kf4 {[%emt 0:00:00] Against Rf5+} Kb7 {[%emt 0:00:10]} 54. Rg6 {[%emt 0:00:00]} Ka6 {[%emt 0:01:30]} 55. Rg5 {[%emt 0:00:00]} Rc5 {[%emt 0:01:56]} 56. Ke3 {[%emt 0:00:00]} Ka5 {[%emt 0:01:12]} 57. Kd3 {[%emt 0:00:00]} Ka4 {[%emt 0:01:09]} ({Less strong is} 57... Rxg5 58. hxg5 h4 59. Ke3 $18 (59. g6 h3 $11)) 58. Ke3 {[%emt 0:00:00]} Ka3 {[%emt 0:05:25]} 59. Kd3 {[%emt 0:00:00]} Kb3 {[%emt 0:00:16]} 60. Ke3 {[%emt 0:00:00]} Kc4 {[%emt 0:02:04] Black used his chance.  Weighted Error Value: White=0.63/Black=0.30} ({Not} 60... Rxg5 61. hxg5 g3 62. g6 $18) 0-1

[Event "Krakow Championship-A 2022"]
[Site "Krakow"]
[Date "2022.06.30"]
[Round "7.7"]
[White "Rozentalis, Eduardas"]
[Black "Jacobsen, Mikkel Manosri"]
[Result "1-0"]
[ECO "B10"]
[WhiteElo "2523"]
[BlackElo "2251"]
[Annotator "TA"]
[PlyCount "55"]
[EventDate "2022.06.25"]
[EventType "swiss"]
[EventCountry "POL"]
[SourceTitle "playchess.com"]
[Source "ChessBase"]
[SourceQuality "1"]
[TimeControl "40/5400+30:1800+30"]

{[%evp 15,55,-18,-18,-42,-19,-45,-19,-25,-3,-15,-16,-29,0,-10,-2,-17,0,-15,-18,-34,-34,-47,-34,-39,0,3,43,37,43,36,230,205,229,219,302,275,381,375,350,330,463,449]} 1. e4 {[%emt 0:00:04]} c6 {[%emt 0:00:03]} 2. d3 {[%emt 0:00:18]} d5 {[%emt 0:00:08]} 3. Nd2 {[%emt 0:00:06]} e5 {[%emt 0:02:02]} 4. Ngf3 {[%emt 0:00:33]} Bd6 {[%emt 0:00:15]} 5. g3 {[%emt 0:00:15]} Nf6 {[%emt 0:00:16]} 6. Bg2 {[%emt 0:00:14]} O-O {[%emt 0:00:05]} 7. O-O {[%emt 0:00:04]} Nbd7 {[%emt 0:01:01]} 8. Nh4 {[%emt 0:06:40] 8.b3 gains popularity.} Re8 {[%emt 0:01:47]} 9. h3 {[%emt 0:06:48] B10: Caro-Kann: 2 d3 and 2 c4.} Bf8 {[%emt 0:01:47]} 10. Nb3 {[%emt 0:02:06]} dxe4 {[%emt 0:05:45]} 11. dxe4 {[%emt 0:00:27] [#] The position is equal.} Nb6 $146 {[%emt 0:00:36]} ({Predecessor:} 11... Nc5 12. Qxd8 Rxd8 13. Bg5 Be6 14. Rfe1 h6 15. Bxf6 gxf6 16. Rad1 Nxb3 17. axb3 Bc5 18. Nf5 Bxf5 19. exf5 Kf8 20. Kf1 Ke7 21. Ke2 Rxd1 22. Rxd1 Rd8 23. Rxd8 Kxd8 {½-½ (23) Savic,M (2420)-Ratkovic,M (2437) Arandjelovac 2021}) 12. Qf3 {[%emt 0:03:14]} Be6 {[%emt 0:05:52]} 13. Rd1 {[%emt 0:10:07]} Nfd7 {[%emt 0:02:50]} 14. Nf5 {[%emt 0:02:57]} Qc7 {[%emt 0:01:55]} 15. Nd2 {[%emt 0:14:11][%cal Bb3d2,Bd2f1,Bf1g3,Bg3h5][%mdl 32]} a5 {[%emt 0:04:15]} 16. Nf1 {[%emt 0:01:28]} a4 {[%emt 0:02:21]} 17. g4 {[%emt 0:01:38]} Nc5 {[%emt 0:01:58]} 18. N1g3 {[%emt 0:01:41]} f6 {[%emt 0:10:55]} 19. Nh5 {[%emt 0:09:54]} Qf7 {[%emt 0:05:02]} 20. Be3 {[%emt 0:04:00] [#] aiming for Bxc5.} Nbd7 {[%emt 0:07:43]} 21. Nd6 {[%emt 0:05:13]} Bxd6 {[%emt 0:00:59]} 22. Rxd6 {[%emt 0:00:05]} Bxa2 $2 {[%emt 0:03:46] This costs Black the game.} ({Black should play} 22... Na6 $14) 23. Bxc5 $18 {[%emt 0:01:26]} Nxc5 {[%emt 0:02:42]} 24. Qa3 $1 {[%emt 0:00:59][%csl LRa2,LRc5]} Nxe4 {[%emt 0:06:52]} 25. Bxe4 {[%emt 0:00:56]} Bd5 {[%emt 0:00:08]} 26. Qd3 {[%emt 0:02:42][%cal Rd6d5]} Bxe4 {[%emt 0:00:21]} 27. Qxe4 {[%emt 0:00:04]} Ra5 {[%emt 0:01:16]} (27... Qf8 {might work better.}) 28. Rad1 {[%emt 0:02:03] Weighted Error Value: White=0.07 (flawless) /Black=0.47} 1-0

[Event "Krakow Championship-A 2022"]
[Site "Krakow"]
[Date "2022.06.30"]
[Round "7.8"]
[White "Murphy, Conor E"]
[Black "Piekielny, Pawel"]
[Result "1/2-1/2"]
[ECO "B10"]
[WhiteElo "2395"]
[BlackElo "2230"]
[Annotator "TA"]
[PlyCount "109"]
[EventDate "2022.06.25"]
[EventType "swiss"]
[EventCountry "POL"]
[SourceTitle "playchess.com"]
[Source "ChessBase"]
[SourceQuality "1"]
[TimeControl "40/5400+30:1800+30"]

{[%evp 9,109,-2,26,8,5,6,14,-30,-20,-35,-32,-26,-34,-26,-21,-26,-33,-23,0,0,0,0,0,0,0,0,0,0,0,0,1,2,0,0,0,0,0,-47,-50,-47,-49,-46,-51,-51,-50,-44,-54,-40,0,0,0,0,0,0,0,0,0,0,0,0,0,0,0,0,0,0,0,0,0,0,0,0,0,0,0,0,0,0,0,5,6,0,0,0,0,0,0,0,0,0,0,0,0,0,0,0,0,0,0,0,0,0]} 1. e4 {[%emt 0:01:56]} c6 {[%emt 0:00:06]} 2. Nf3 {[%emt 0:03:18]} d5 {[%emt 0:00:06]} 3. d3 {[%emt 0:00:06]} dxe4 {[%emt 0:00:05]} 4. dxe4 {[%emt 0:00:08]} Qxd1+ {[%emt 0:00:05]} 5. Kxd1 {[%emt 0:00:08]} Bg4 {[%emt 0:00:04]} 6. Ke1 {[%emt 0:07:56] [#] B10: Caro-Kann: 2 d3 and 2 c4.} Bxf3 $146 {[%emt 0:01:40]} ({Predecessor:} 6... e6 7. Bg5 f6 8. Bf4 Nd7 9. Nc3 O-O-O 10. Bd3 Nc5 11. Bc4 Bxf3 12. gxf3 g5 {0-1 (25) Baluta,M-Petroff,V Chess.com INT 2020}) 7. gxf3 {[%emt 0:00:04]} g6 {[%emt 0:02:29]} 8. Nd2 {[%emt 0:03:00]} Bh6 {[%emt 0:05:17]} 9. a4 {[%emt 0:05:13]} Nd7 {[%emt 0:01:39]} 10. Nc4 {[%emt 0:09:23]} Bxc1 {[%emt 0:00:12]} 11. Rxc1 {[%emt 0:00:09]} Ngf6 {[%emt 0:02:32]} 12. Kd2 {[%emt 0:05:44]} Nb6 {[%emt 0:08:45]} 13. Ke3 {[%emt 0:07:45]} Nxc4+ {[%emt 0:13:56]} 14. Bxc4 {[%emt 0:00:07]} a5 {[%emt 0:04:45]} 15. f4 {[%emt 0:03:00]} e6 {[%emt 0:00:14]} 16. h4 {[%emt 0:05:45]} Ke7 {[%emt 0:01:24]} 17. Be2 {[%emt 0:06:22]} h5 {[%emt 0:03:16]} 18. Rhg1 {[%emt 0:01:39]} Rad8 {[%emt 0:04:46]} 19. Rg5 {[%emt 0:05:13]} Ra8 {[%emt 0:04:25]} 20. Rd1 {[%emt 0:01:37]} b6 {[%emt 0:05:24]} 21. Rd3 {[%emt 0:03:34]} Rhd8 {[%emt 0:01:05]} 22. Rb3 {[%emt 0:07:17]} Rab8 {[%emt 0:00:32]} 23. f5 {[%emt 0:03:30]} (23. Rg1 $11 {should be considered.}) 23... gxf5 $1 $15 {[%emt 0:01:53]} 24. exf5 {[%emt 0:00:37]} e5 {[%emt 0:01:37]} 25. Rd3 {[%emt 0:06:35] Inhibits Rd4.} Rxd3+ {[%emt 0:09:21]} (25... Nd5+ {feels hotter.} 26. Ke4 b5 27. f6+ Nxf6+ 28. Kxe5 Rd5+) 26. Bxd3 {[%emt 0:01:16][%mdl 4096] Endgame KRB-KRN} Rd8 {[%emt 0:00:23] And now ...Rd4 would win.} 27. c3 {[%emt 0:02:50] Inhibits Rd4.} Nd5+ {[%emt 0:05:51]} 28. Ke4 $1 {[%emt 0:01:24]} Nf4 {[%emt 0:02:07]} (28... Kf6 $5 {[%cal Rd5f4]}) 29. f6+ $1 {[%emt 0:00:59] The position is equal.} Kxf6 {[%emt 0:02:15]} 30. Bc4 {[%emt 0:00:02]} Ne6 {[%emt 0:04:03]} 31. Rf5+ {[%emt 0:01:17]} ({Much worse is} 31. Rxe5 Nc5+ 32. Kf4 Nxa4 33. Rxh5 Kg7 $11) 31... Ke7 {[%emt 0:00:27]} 32. Rxe5 {[%emt 0:03:30]} Rd2 {[%emt 0:00:29][%csl LRb2,LRf2]} 33. f4 {[%emt 0:01:17] [#] Black must now prevent f5.} Kf6 {[%emt 0:03:24]} 34. b3 {[%emt 0:00:47]} Rc2 {[%emt 0:02:55]} 35. Rf5+ {[%emt 0:01:11]} Kg6 {[%emt 0:02:01][%cal Of7f6]} 36. Re5 {[%emt 0:00:59]} Kf6 {[%emt 0:03:56]} 37. Rxh5 {[%emt 0:00:11]} Rxc3 {[%emt 0:00:11]} 38. Rf5+ {[%emt 0:00:58]} Ke7 {[%emt 0:00:58]} 39. Re5 {[%emt 0:00:48] [#] Threatens to win with f5.} Kf6 {[%emt 0:00:41]} 40. Rf5+ {[%emt 0:01:54]} Ke7 {[%emt 0:00:16]} 41. Re5 {[%emt 0:15:53] Strongly threatening f5.} Kf6 {[%emt 0:00:12]} 42. Rh5 {[%emt 0:01:35]} Kg6 {[%emt 0:10:58]} 43. Rh8 {[%emt 0:01:20]} Nc5+ {[%emt 0:00:25]} 44. Kd4 {[%emt 0:01:09]} Rf3 {[%emt 0:01:05]} 45. h5+ {[%emt 0:02:16]} Kg7 {[%emt 0:02:18]} 46. Rc8 {[%emt 0:02:05]} Nxb3+ {[%emt 0:02:50]} 47. Ke5 {[%emt 0:00:38]} Re3+ {[%emt 0:04:06]} 48. Kd6 {[%emt 0:00:52]} Nd4 {[%emt 0:02:53]} 49. Rc7 {[%emt 0:00:27]} b5 {[%emt 0:00:10]} 50. Bxf7 {[%emt 0:01:40] aiming for Bg6+.} Nf5+ {[%emt 0:02:44]} 51. Kc5 {[%emt 0:03:37]} Re7 {[%emt 0:00:23]} 52. Rxe7 {[%emt 0:00:19]} Nxe7 {[%emt 0:00:04]} 53. Bb3 {[%emt 0:00:28]} bxa4 {[%emt 0:00:06]} 54. Bxa4 {[%emt 0:00:09]} Nd5 {[%emt 0:00:20]} 55. Bxc6 {[%emt 0:02:02] Weighted Error Value: White=0.03 (flawless) /Black=0.02 (flawless)} 1/2-1/2

[Event "Krakow Championship-A 2022"]
[Site "Krakow"]
[Date "2022.06.30"]
[Round "7.9"]
[White "Nurkiewicz, Maciej"]
[Black "Skytte, Rasmus"]
[Result "0-1"]
[ECO "B90"]
[WhiteElo "2332"]
[BlackElo "2357"]
[Annotator "TA"]
[PlyCount "67"]
[EventDate "2022.06.25"]
[EventType "swiss"]
[EventCountry "POL"]
[SourceTitle "playchess.com"]
[Source "ChessBase"]
[SourceQuality "1"]
[TimeControl "40/5400+30:1800+30"]

{[%evp 19,67,14,13,0,0,0,1,-12,-5,-2,0,0,0,0,0,0,0,0,0,0,14,15,79,79,85,93,77,22,41,-51,-56,-54,-74,-110,-124,-744,-697,-956,-979,-1577,-1487,-29984,-29985,-29984,-29985,-29985,-29986,-29986,-29987,-29988]} 1. e4 {[%emt 0:00:05]} c5 {[%emt 0:00:08]} 2. Nf3 {[%emt 0:00:04]} d6 {[%emt 0:00:08]} 3. d4 {[%emt 0:00:03]} cxd4 {[%emt 0:00:07]} 4. Nxd4 {[%emt 0:00:04]} Nf6 {[%emt 0:00:13]} 5. Nc3 {[%emt 0:00:03]} a6 6. Be3 {[%emt 0:00:18]} e5 {[%emt 0:00:32]} 7. Nb3 {[%emt 0:00:57]} Be7 {[%emt 0:00:08]} 8. f3 {[%emt 0:25:42][%cal Bf2f3,Bf3f4][%mdl 32]} Be6 {[%emt 0:01:42]} 9. Qd2 {[%emt 0:00:05]} h5 {[%emt 0:00:18]} 10. O-O-O {[%emt 0:00:25]} Nbd7 {[%emt 0:00:21]} 11. f4 {[%emt 0:17:01] B90: Sicilian Najdorf: Unusual White 6th moves, 6 Be3 Ng4 and 6 Be3 e5.} b5 {[%emt 0:10:36]} 12. Kb1 {[%emt 0:03:52]} O-O {[%emt 0:08:14] [#] has lost popularity (12...Qc7).} 13. h3 $146 {[%emt 0:05:46][%cal Og2g4] The position is equal.} ({Predecessor:} 13. f5 Bc4 14. h3 h4 15. g4 hxg3 16. Rg1 Nh5 17. Bxc4 bxc4 18. Nc1 Re8 19. N1e2 {½-½ (46) Winkler,T (2619)-Ruemmele,M (2538) ICCF email 2007}) 13... b4 {[%emt 0:09:24]} 14. Nd5 {[%emt 0:00:23]} Nxe4 {[%emt 0:09:25][%cal Bf6e4,Be4g3,Bg3f5][%mdl 32]} 15. Nxe7+ {[%emt 0:00:11]} Qxe7 {[%emt 0:00:06]} 16. Qxb4 {[%emt 0:00:22]} Ng3 {[%emt 0:05:04] Pair of Knights!} 17. Rg1 {[%emt 0:00:11]} Nf5 {[%emt 0:03:54]} 18. Bf2 {[%emt 0:01:35]} a5 $36 {[%emt 0:04:42][%mdl 2048] Black fights for an advantage.} 19. Qa4 {[%emt 0:06:10]} e4 {[%emt 0:16:50] Strongly threatening ...e3.} 20. g4 {[%emt 0:13:51]} Bxb3 {[%emt 0:09:20]} (20... e3 $11 {keeps the balance.} 21. gxf5 exf2) 21. axb3 $16 {[%emt 0:00:46]} (21. Qxb3 e3 22. gxf5 exf2 $11) 21... e3 {[%emt 0:03:03]} 22. gxf5 {[%emt 0:00:09]} exf2 {[%emt 0:01:07]} 23. Rg5 {[%emt 0:00:27]} (23. Rg2 $1 $16) 23... Nf6 $11 {[%emt 0:01:54] Hoping for ...Qa7.} 24. Qd4 {[%emt 0:01:04]} ({Better is} 24. Rg2 $1 $14) 24... Rfb8 $1 $15 {[%emt 0:12:50][%cal Oa5a4]} (24... Qe1 25. Qxf6 $1 (25. Rg2 Kh7 $16) 25... Qxd1+ 26. Ka2 g6 27. fxg6 $1) 25. Qxf2 {[%emt 0:05:27]} a4 $1 {[%emt 0:01:09]} (25... Ne4 $2 26. Qe3 Re8 27. Rg2 $16 (27. Rxh5 a4 $16)) 26. Re1 {[%emt 0:04:36] [#]} Qc7 {[%emt 0:01:40]} 27. Bc4 {[%emt 0:03:17][%mdl 8192] Now White is beyond hope.} (27. Qg3 $17 axb3 28. cxb3 (28. Rxg7+ Kh8 $17)) 27... axb3 $19 {[%emt 0:00:20]} 28. cxb3 {[%emt 0:00:39] Black must now prevent Qg3.} d5 {[%emt 0:00:19][%cal Bd6d5,Bd5c4][%mdl 32]} (28... Qa5 29. Reg1 (29. Kc2 $2 Kf8 $19) 29... d5 30. Rxg7+ Kf8 31. Qd4 $11) 29. Bd3 {[%emt 0:09:47]} Qa5 {[%emt 0:00:07] ( -> ...Rc8)} 30. Qg3 {[%emt 0:00:21]} Qa2+ {[%emt 0:00:40] Black mates.} 31. Kc1 {[%emt 0:00:12]} Rc8+ {[%emt 0:00:28]} 32. Bc4 {[%emt 0:02:00]} dxc4 {[%emt 0:00:37]} 33. Rxg7+ {[%emt 0:00:05]} Kh8 {[%emt 0:00:16]} 34. Qg5 {[%emt 0:00:44] Weighted Error Value: White=0.99/Black=0.06 (flawless)} 0-1